Workbook

Sheet Baseline.numbers
A1: Hosp | B1: State | C1: inftype | D1: baseline numbers of SAB
A2: Hosp | B2: WA | C2: SAB | D2: 2.28
A3: Hosp | B3: WA | C3: SAB | D3: 3.24
A4: Hosp | B4: WA | C4: SAB | D4: 3.73
A5: Hosp | B5: WA | C5: SAB | D5: 0.33
A6: Hosp | B6: WA | C6: SAB | D6: 0.24
A7: Hosp | B7: Tas | C7: SAB | D7: 1.59
A8: Hosp | B8: Tas | C8: SAB | D8: 0.86
A9: Hosp | B9: Tas | C9: SAB | D9: 0.24
A10: Hosp | B10: QLD | C10: SAB | D10: 0.88
A11: Hosp | B11: QLD | C11: SAB | D11: 0.72
A12: Hosp | B12: QLD | C12: SAB | D12: 0.72
A13: Hosp | B13: QLD | C13: SAB | D13: 0.40
A14: Hosp | B14: QLD | C14: SAB | D14: 0.64
A15: Hosp | B15: QLD | C15: SAB | D15: 2.08
A16: Hosp | B16: QLD | C16: SAB | D16: 3.68
A17: Hosp | B17: QLD | C17: SAB | D17: 2.20
A18: Hosp | B18: QLD | C18: SAB | D18: 2.04
A19: Hosp | B19: SA | C19: SAB | D19: 1.96
A20: Hosp | B20: SA | C20: SAB | D20: 0.71
A21: Hosp | B21: SA | C21: SAB | D21: 1.54
A22: Hosp | B22: SA | C22: SAB | D22: 5.61
A23: Hosp | B23: SA | C23: SAB | D23: 0.57
A24: Hosp | B24: ACT | C24: SAB | D24: 2.91
A25: Hosp | B25: NSW | C25: SAB | D25: 0.94
A26: Hosp | B26: NSW | C26: SAB | D26: 0.61
A27: Hosp | B27: NSW | C27: SAB | D27: 0.95
A28: Hosp | B28: NSW | C28: SAB | D28: 2.61
A29: Hosp | B29: NSW | C29: SAB | D29: 2.12
A30: Hosp | B30: NSW | C30: SAB | D30: 4.34
A31: Hosp | B31: NSW | C31: SAB | D31: 3.97
A32: Hosp | B32: NSW | C32: SAB | D32: 2.85
A33: Hosp | B33: NSW | C33: SAB | D33: 2.74
A34: Hosp | B34: NSW | C34: SAB | D34: 3.38
A35: Hosp | B35: NSW | C35: SAB | D35: 2.95
A36: Hosp | B36: NSW | C36: SAB | D36: 2.95
A37: Hosp | B37: NSW | C37: SAB | D37: 1.34
A38: Hosp | B38: NSW | C38: SAB | D38: 5.54
A39: Hosp | B39: NSW | C39: SAB | D39: 1.66
A40: Hosp | B40: Vic | C40: SAB | D40: 1.21
A41: Hosp | B41: Vic | C41: SAB | D41: 1.18
A42: Hosp | B42: Vic | C42: SAB | D42: 0.79
A43: Hosp | B43: Vic | C43: SAB | D43: 0.92
A44: Hosp | B44: Vic | C44: SAB | D44: 0.83
A45: Hosp | B45: Vic | C45: SAB | D45: 0.89
A46: Hosp | B46: Vic | C46: SAB | D46: 1.18
A47: Hosp | B47: Vic | C47: SAB | D47: 1.22
A48: Hosp | B48: Vic | C48: SAB | D48: 0.91
A49: Hosp | B49: Vic | C49: SAB | D49: 0.74
A50: Hosp | B50: Vic | C50: SAB | D50: 0.72

Sheet sab
A1: state | B1: ACT | C1: ACT | D1: ACT | E1: ACT | F1: ACT | G1: ACT | H1: ACT | I1: ACT | J1: ACT | K1: ACT | L1: ACT | M1: ACT
A2: inftype | B2: sab | C2: sab | D2: sab | E2: sab | F2: sab | G2: sab | H2: sab | I2: sab | J2: sab | K2: sab | L2: sab | M2: sab
A3: yrmon.diff | B3: 0.00 | C3: 0.08 | D3: 0.17 | E3: 0.25 | F3: 0.33 | G3: 0.42 | H3: 0.50 | I3: 0.58 | J3: 0.67 | K3: 0.75 | L3: 0.83 | M3: 0.92
A4: perc reduction | B4: 0.72 | C4: 0.72 | D4: 0.72 | E4: 0.72 | F4: 0.72 | G4: 0.72 | H4: 0.72 | I4: 0.72 | J4: 0.72 | K4: 0.72 | L4: 0.72 | M4: 0.72
A5: SD | B5: 0.24 | C5: 0.25 | D5: 0.26 | E5: 0.23 | F5: 0.24 | G5: 0.26 | H5: 0.25 | I5: 0.24 | J5: 0.25 | K5: 0.21 | L5: 0.24 | M5: 0.24
A7: state | B7: NSW | C7: NSW | D7: NSW | E7: NSW | F7: NSW | G7: NSW | H7: NSW | I7: NSW | J7: NSW | K7: NSW | L7: NSW | M7: NSW
A8: inftype | B8: sab | C8: sab | D8: sab | E8: sab | F8: sab | G8: sab | H8: sab | I8: sab | J8: sab | K8: sab | L8: sab | M8: sab
A9: yrmon.diff | B9: 0.00 | C9: 0.08 | D9: 0.17 | E9: 0.25 | F9: 0.33 | G9: 0.42 | H9: 0.50 | I9: 0.58 | J9: 0.67 | K9: 0.75 | L9: 0.83 | M9: 0.92
A10: =A4 -> perc reduction | B10: 1.00 | C10: 0.99 | D10: 0.98 | E10: 0.97 | F10: 0.96 | G10: 0.95 | H10: 0.94 | I10: 0.93 | J10: 0.92 | K10: 0.91 | L10: 0.90 | M10: 0.90
A11: SD | B11: 0.09 | C11: 0.09 | D11: 0.09 | E11: 0.09 | F11: 0.09 | G11: 0.08 | H11: 0.08 | I11: 0.08 | J11: 0.07 | K11: 0.08 | L11: 0.08 | M11: 0.08
A13: state | B13: QLD | C13: QLD | D13: QLD | E13: QLD | F13: QLD | G13: QLD | H13: QLD | I13: QLD | J13: QLD | K13: QLD | L13: QLD | M13: QLD
A14: inftype | B14: sab | C14: sab | D14: sab | E14: sab | F14: sab | G14: sab | H14: sab | I14: sab | J14: sab | K14: sab | L14: sab | M14: sab
A15: yrmon.diff | B15: 0.00 | C15: 0.08 | D15: 0.17 | E15: 0.25 | F15: 0.33 | G15: 0.42 | H15: 0.50 | I15: 0.58 | J15: 0.67 | K15: 0.75 | L15: 0.83 | M15: 0.92
A16: perc reduction | B16: 0.83 | C16: 0.83 | D16: 0.83 | E16: 0.83 | F16: 0.83 | G16: 0.83 | H16: 0.83 | I16: 0.83 | J16: 0.83 | K16: 0.83 | L16: 0.83 | M16: 0.83
A17: SD | B17: 0.10 | C17: 0.10 | D17: 0.10 | E17: 0.10 | F17: 0.10 | G17: 0.10 | H17: 0.10 | I17: 0.11 | J17: 0.10 | K17: 0.10 | L17: 0.10 | M17: 0.10
A19: state | B19: SA | C19: SA | D19: SA | E19: SA | F19: SA | G19: SA | H19: SA | I19: SA | J19: SA | K19: SA | L19: SA | M19: SA
A20: inftype | B20: sab | C20: sab | D20: sab | E20: sab | F20: sab | G20: sab | H20: sab | I20: sab | J20: sab | K20: sab | L20: sab | M20: sab
A21: yrmon.diff | B21: 0.00 | C21: 0.08 | D21: 0.17 | E21: 0.25 | F21: 0.33 | G21: 0.42 | H21: 0.50 | I21: 0.58 | J21: 0.67 | K21: 0.75 | L21: 0.83 | M21: 0.92
A22: perc reduction | B22: 1.00 | C22: 0.99 | D22: 0.99 | E22: 0.98 | F22: 0.97 | G22: 0.96 | H22: 0.96 | I22: 0.95 | J22: 0.94 | K22: 0.94 | L22: 0.93 | M22: 0.92
A23: SD | B23: 0.15 | C23: 0.15 | D23: 0.15 | E23: 0.14 | F23: 0.14 | G23: 0.14 | H23: 0.14 | I23: 0.14 | J23: 0.14 | K23: 0.13 | L23: 0.14 | M23: 0.13
A25: state | B25: Tas | C25: Tas | D25: Tas | E25: Tas | F25: Tas | G25: Tas | H25: Tas | I25: Tas | J25: Tas | K25: Tas | L25: Tas | M25: Tas
A26: inftype | B26: sab | C26: sab | D26: sab | E26: sab | F26: sab | G26: sab | H26: sab | I26: sab | J26: sab | K26: sab | L26: sab | M26: sab
A27: yrmon.diff | B27: 0.00 | C27: 0.08 | D27: 0.17 | E27: 0.25 | F27: 0.33 | G27: 0.42 | H27: 0.50 | I27: 0.58 | J27: 0.67 | K27: 0.75 | L27: 0.83 | M27: 0.92
A28: perc reduction | B28: 1.00 | C28: 1.00 | D28: 1.00 | E28: 1.00 | F28: 1.00 | G28: 1.00 | H28: 1.00 | I28: 1.00 | J28: 1.00 | K28: 1.00 | L28: 1.00 | M28: 1.00
A29: SD | B29: 0.21 | C29: 0.21 | D29: 0.21 | E29: 0.22 | F29: 0.19 | G29: 0.20 | H29: 0.20 | I29: 0.19 | J29: 0.20 | K29: 0.19 | L29: 0.21 | M29: 0.21
A31: state | B31: WA | C31: WA | D31: WA | E31: WA | F31: WA | G31: WA | H31: WA | I31: WA | J31: WA | K31: WA | L31: WA | M31: WA
A32: inftype | B32: sab | C32: sab | D32: sab | E32: sab | F32: sab | G32: sab | H32: sab | I32: sab | J32: sab | K32: sab | L32: sab | M32: sab
A33: yrmon.diff | B33: 0.00 | C33: 0.08 | D33: 0.17 | E33: 0.25 | F33: 0.33 | G33: 0.42 | H33: 0.50 | I33: 0.58 | J33: 0.67 | K33: 0.75 | L33: 0.83 | M33: 0.92
A34: perc reduction | B34: 1.00 | C34: 1.00 | D34: 1.00 | E34: 1.00 | F34: 1.00 | G34: 1.00 | H34: 1.00 | I34: 1.00 | J34: 1.00 | K34: 1.00 | L34: 1.00 | M34: 1.00
A35: SD | B35: 0.17 | C35: 0.16 | D35: 0.16 | E35: 0.16 | F35: 0.17 | G35: 0.17 | H35: 0.16 | I35: 0.17 | J35: 0.17 | K35: 0.16 | L35: 0.16 | M35: 0.17

Sheet BaselineRatesForNick
A2: State | B2: Hospital | C2: Infection Type | D2: Number of infections | E2: Denominator
A3: WA | B3: HOSP | C3: SAB | D3: 2.45 | E3: 28,302
A4: WA | B4: HOSP | C4: SAB | D4: 3.33 | E4: 52,500
A5: WA | B5: HOSP | C5: SAB | D5: 3.31 | E5: 45,460
A6: WA | B6: HOSP | C6: SAB | D6: 0.36 | E6: 10,863
A7: WA | B7: HOSP | C7: SAB | D7: 0.38 | E7: 13,606
A8: Tas | B8: HOSP | C8: SAB | D8: 1.62 | E8: 11,886
A9: Tas | B9: HOSP | C9: SAB | D9: 1.00 | E9: 8,156
A10: Tas | B10: HOSP | C10: SAB | D10: 0.33 | E10: 2,734
A11: QLD | B11: HOSP | C11: SAB | D11: 1.25 | E11: 8,963
A12: QLD | B12: HOSP | C12: SAB | D12: 1.08 | E12: 17,373
A13: QLD | B13: HOSP | C13: SAB | D13: 0.38 | E13: 6,727
A14: QLD | B14: HOSP | C14: SAB | D14: 0.29 | E14: 7,328
A15: QLD | B15: HOSP | C15: SAB | D15: 1.08 | E15: 8,573
A16: QLD | B16: HOSP | C16: SAB | D16: 3.39 | E16: 20,607
A17: QLD | B17: HOSP | C17: SAB | D17: 4.06 | E17: 24,013
A18: QLD | B18: HOSP | C18: SAB | D18: 1.33 | E18: 12,432
A19: QLD | B19: HOSP | C19: SAB | D19: 1.81 | E19: 11,434
A20: SA | B20: HOSP | C20: SAB | D20: 1.95 | E20: 35,543
A21: SA | B21: HOSP | C21: SAB | D21: 1.53 | E21: 24,097
A22: SA | B22: HOSP | C22: SAB | D22: 5.32 | E22: 44,128
A23: SA | B23: HOSP | C23: SAB | D23: 0.57 | E23: 17,851
A24: SA | B24: HOSP | C24: SAB
A25: NSW | B25: HOSP | C25: SAB | D25: 0.80 | E25: 6,283
A26: NSW | B26: HOSP | C26: SAB | D26: 2.22 | E26: 13,723
A27: NSW | B27: HOSP | C27: SAB | D27: 1.06 | E27: 9,723
A28: NSW | B28: HOSP | C28: SAB | D28: 2.78 | E28: 17,028
A29: NSW | B29: HOSP | C29: SAB | D29: 3.02 | E29: 19,509
A30: NSW | B30: HOSP | C30: SAB | D30: 3.39 | E30: 21,793
A31: NSW | B31: HOSP | C31: SAB | D31: 4.20 | E31: 21,818
A32: NSW | B32: HOSP | C32: SAB | D32: 2.80 | E32: 16,385
A33: NSW | B33: HOSP | C33: SAB | D33: 2.96 | E33: 14,367
A34: NSW | B34: HOSP | C34: SAB | D34: 2.65 | E34: 14,079
A35: NSW | B35: HOSP | C35: SAB | D35: 1.44 | E35: 13,465
A36: NSW | B36: HOSP | C36: SAB | D36: 1.19 | E36: 11,760
A37: NSW | B37: HOSP | C37: SAB | D37: 0.61 | E37: 9,149
A38: NSW | B38: HOSP | C38: SAB | D38: 3.26 | E38: 14,698
A39: NSW | B39: HOSP | C39: SAB | D39: 6.31 | E39: 22,365
A40: ACT | B40: HOSP | C40: SAB | D40: 3.19 | E40: 18,085

Sheet Input Tables
B1: DATA FOR DEATH RISKS
A2: Number of infections | B2: 744 | G2: Extra Stay | H2: DIED | J2: DISCHARGED
A3: Controls | B3: 2961 | H3: WARD | I3: ICU | J3: WARD | K3: ICU
A4: Total number of deaths | B4: 302 | G4: mean | H4: 1.00 | I4: 1.60 | J4: 11.40 | K4: 1.00
A5: Death rate in controls | B5: 6.03% | G5: se | H5: 2.60 | I5: 0.69 | J5: 2.22 | K5: 0.56
G6: CI | H6: -3.30 | I6: 0.30 | J6: 7.30 | K6: 0.30
G7: CI | H7: 6.90 | I7: 3.00 | J7: 16.00 | K7: 2.50
A8: birth year | B8: 1950
A9: mean age at death | B9: 62.00
A10: s.e. | B10: 0.219
A11: life expectancy | B11: 69.70
A12: Years life lost | B12: 7.70
A13: DISCOUNTED YLL | B13: 6.78
AF24: HHA STATE COSTS
AF25: State | AG25: Beds in our study | AH25: Total beds | AI25: Bed coverage | AJ25: Total cost for state | AK25: Total State HHA costs by bed prop | AL25: HHA % total
AF26: QLD | AG26: 5366 | AH26: 11117 | AI26: 0.48 | AJ26: 276529 | AK26: 133476 | AL26: 0.224
AF27: SA | AG27: 2065 | AH27: 5040 | AI27: 0.41 | AJ27: 125367 | AK27: 51366 | AL27: 0.086
AF28: WA | AG28: 2180 | AH28: 5492 | AI28: 0.4 | AJ28: 136610 | AK28: 54226 | AL28: 0.091
AF29: TAS | AG29: 1007 | AH29: 1196 | AI29: 0.84 | AJ29: 29749 | AK29: 25049 | AL29: 0.042
AF30: NT | AG30: 335 | AH30: 662 | AI30: 0.5 | AJ30: 16467 | AK30: 8332 | AL30: 0.014
AF31: NSW | AG31: 7806 | AH31: 19931 | AI31: 0.39 | AJ31: 495773 | AK31: 194170 | AL31: 0.326
AF32: VIC | AG32: 5184 | AH32: 13408 | AI32: 0.39 | AJ32: 333517 | AK32: 128949 | AL32: 0.217
AF33: ACT | AG33: 619 | AH33: 926 | AI33: 0.67 | AJ33: 23034 | AK33: 15397 | AL33: 0.026
AF34: Total | AG34: 24562 | AH34: 57772 | AI34: 0.43 | AJ34: 1437048 | AK34: 595569 | AL34: 100

Sheet Hospital Summary SAB
E1: Costs borne by hospitals - implementation
A2: STATE | B2: HOSPITAL | C2: BEDS | D2: RELEVANT ADMISSIONS | E2: Costs Min | F2: Costs Max | G2: Costs SD | H2: Costs Best | I2: used for sampling
A4: NT | B4: Hosp | C4: 335 | D4: 19,667 | E4: $44,626 | F4: $99,277 | G4: =(F4-E4)/(2.575829*2) -> $10,608 | H4: $75,769 | I4: =NORMINV(RAND(),H4,G4) -> $77,414
A5: QLD | B5: Hosp | C5: 375 | D5: 19,429 | E5: $44,690 | F5: $116,134 | G5: =(F5-E5)/(2.575829*2) -> $13,868 | H5: $75,389 | I5: =NORMINV(RAND(),H5,G5) -> $85,273
A6: QLD | B6: Hosp | C6: 855 | D6: 40,924 | E6: $39,301 | F6: $87,635 | G6: =(F6-E6)/(2.575829*2) -> $9,382 | H6: $52,495 | I6: $43,849
A7: QLD | B7: Hosp | C7: 340 | D7: 18,433 | E7: $32,816 | F7: $75,111 | G7: $8,210 | H7: $45,542 | I7: $54,629
A8: QLD | B8: Hosp | C8: 316 | D8: 19,541 | E8: $17,787 | F8: $44,467 | G8: $5,179 | H8: $26,680 | I8: $27,036
A9: QLD | B9: Hosp | C9: 361 | D9: 22,588 | E9: $44,506 | F9: $95,826 | G9: $9,962 | H9: $68,820 | I9: $82,159
A10: QLD | B10: Hosp | C10: 918 | D10: 35,299 | E10: $58,701 | F10: $95,865 | G10: $7,214 | H10: $75,631 | I10: $85,216
A11: QLD | B11: Hosp | C11: 1051 | D11: 42,995 | E11: $124,630 | F11: $253,116 | G11: $24,941 | H11: $189,576 | I11: $168,994
A12: QLD | B12: Hosp | C12: 604 | D12: 23,185 | E12: $31,331 | F12: $106,335 | G12: $14,559 | H12: $56,370 | I12: $72,131
A13: QLD | B13: Hosp | C13: 546 | D13: 24,305 | E13: $46,987 | F13: $107,999 | G13: $11,843 | H13: $70,130 | I13: $72,614
A14: SA | B14: Hosp | C14: 555 | D14: 33,401 | E14: $34,680 | F14: $170,070 | G14: $26,281 | H14: $85,035 | I14: $10,286
A15: SA | B15: Hosp | C15: 328 | D15: 18,766 | E15: $60,436 | F15: $195,141 | G15: $26,148 | H15: $105,697 | I15: $120,919
A16: SA | B16: Hosp | C16: 279 | D16: 9,511 | E16: $40,212 | F16: $90,873 | G16: $9,834 | H16: $51,871 | I16: $67,532
A17: SA | B17: Hosp | C17: 242 | D17: 23,284 | E17: $25,194 | F17: $80,468 | G17: $10,729 | H17: $44,141 | I17: $40,940
A18: SA | B18: Hosp | C18: 661 | D18: 37,473 | E18: $28,877 | F18: $68,387 | G18: $7,669 | H18: $45,099 | I18: $51,305
A19: TAS | B19: Hosp | C19: 266 | D19: 13,333 | E19: $21,374 | F19: $53,032 | G19: $6,145 | H19: $35,086 | I19: $37,813
A20: TAS | B20: Hosp | C20: 134 | D20: 5,999 | E20: $312 | F20: $49,917 | G20: $9,629 | H20: $28,338 | I20: $20,492
A21: TAS | B21: Hosp | C21: 607 | D21: 22,518 | E21: $21,953 | F21: $169,161 | G21: $28,575 | H21: $104,215 | I21: $107,981
A22: WA | B22: Hosp | C22: 461 | D22: 23,614 | E22: $38,232 | F22: $118,062 | G22: $15,496 | H22: $90,817 | I22: $66,498
A23: WA | B23: Hosp | C23: 252 | D23: 11,828 | E23: $20,960 | F23: $64,726 | G23: $8,496 | H23: $49,789 | I23: $42,907
A24: WA | B24: Hosp | C24: 220 | D24: 15,152 | E24: $47,358 | F24: $107,543 | G24: $11,683 | H24: $72,896 | I24: $69,157
A25: WA | B25: Hosp | C25: 647 | D25: 37,992 | E25: $42,980 | F25: $101,939 | G25: $11,445 | H25: $97,114 | I25: $94,153
A26: WA | B26: Hosp | C26: 587 | D26: 33,439 | E26: $38,602 | F26: $96,802 | G26: $11,297 | H26: $65,323 | I26: $81,243
A27: NSW | B27: Hosp | C27: 800 | D27: 37,849 | E27: $56,267 | F27: $131,206 | G27: $14,547 | H27: $84,330 | I27: $93,429
A28: NSW | B28: Hosp | C28: 784 | D28: 36,161 | E28: $42,738 | F28: $92,137 | G28: $9,589 | H28: $67,437 | I28: $62,461
A29: NSW | B29: Hosp | C29: 711 | D29: 36,616 | E29: $37,117 | F29: $150,155 | G29: $21,942 | H29: $98,815 | I29: $91,536
A30: NSW | B30: Hosp | C30: 683 | D30: 34,704 | E30: $35,656 | F30: $144,241 | G30: $21,078 | H30: $94,923 | I30: $111,123
A31: NSW | B31: Hosp | C31: 568 | D31: 31,923 | E31: $29,652 | F31: $119,955 | G31: $17,529 | H31: $78,941 | I31: $115,751
A32: NSW | B32: Hosp | C32: 563 | D32: 30,626 | E32: $61,791 | F32: $191,324 | G32: $25,144 | H32: $129,015 | I32: $100,618
A33: NSW | B33: Hosp | C33: 516 | D33: 22,032 | E33: $55,861 | F33: $146,053 | G33: $17,507 | H33: $116,376 | I33: $105,277
A34: NSW | B34: Hosp | C34: 491 | D34: 26,900 | E34: $42,087 | F34: $84,174 | G34: $8,170 | H34: $56,291 | I34: $48,854
A35: NSW | B35: Hosp | C35: 483 | D35: 31,163 | E35: $25,215 | F35: $102,004 | G35: $14,906 | H35: $67,127 | I35: $96,696
A36: NSW | B36: Hosp | C36: 435 | D36: 20,416 | E36: $26,954 | F36: $51,854 | G36: $4,833 | H36: $32,409 | I36: $35,122
A37: NSW | B37: Hosp | C37: 428 | D37: 25,964 | E37: $49,988 | F37: $141,556 | G37: $17,774 | H37: $84,842 | I37: $89,649
A38: NSW | B38: Hosp | C38: 381 | D38: 20,383 | E38: $21,084 | F38: $84,800 | G38: $12,368 | H38: $51,419 | I38: $45,620
A39: NSW | B39: Hosp | C39: 341 | D39: 17,239 | E39: $17,802 | F39: $72,015 | G39: $10,523 | H39: $47,392 | I39: $38,473
A40: NSW | B40: Hosp | C40: 245 | D40: 11,582 | E40: $12,253 | F40: $59,394 | G40: $9,151 | H40: $24,506 | I40: $11,575
A41: NSW | B41: Hosp | C41: 311 | D41: 21,311 | E41: $21,596 | F41: $57,420 | G41: $6,954 | H41: $37,729 | I41: $20,520
A42: VIC | B42: Hosp | C42: 764 | D42: 30,607 | E42: $103,774 | F42: $185,813 | G42: $15,925 | H42: $138,070 | I42: $148,142
A43: VIC | B43: Hosp | C43: 582 | D43: 31,018 | E43: $78,567 | F43: $135,161 | G43: $10,986 | H43: $106,864 | I43: $109,350
A44: VIC | B44: Hosp | C44: 580 | D44: 32,386 | E44: $37,073 | F44: $152,144 | G44: $22,337 | H44: $101,613 | I44: $53,249
A45: VIC | B45: Hosp | C45: 550 | D45: 31,009 | E45: $124,733 | F45: $142,839 | G45: $3,515 | H45: $133,786 | I45: $128,248
A46: VIC | B46: Hosp | C46: 465 | D46: 22,240 | E46: $24,020 | F46: $69,966 | G46: $8,919 | H46: $24,020 | I46: $30,474
A47: VIC | B47: Hosp | C47: 429 | D47: 26,469 | E47: $82,598 | F47: $106,198 | G47: $4,581 | H47: $94,398 | I47: $98,599
A48: VIC | B48: Hosp | C48: 414 | D48: 28,319 | E48: $56,234 | F48: $100,689 | G48: $8,629 | H48: $74,818 | I48: $73,435
A49: VIC | B49: Hosp | C49: 387 | D49: 25,346 | E49: $52,566 | F49: $94,122 | G49: $8,067 | H49: $69,938 | I49: $59,160
A50: VIC | B50: Hosp | C50: 362 | D50: 29,366 | E50: $60,379 | F50: $141,611 | G50: $15,768 | H50: $89,196 | I50: $72,850
A51: VIC | B51: Hosp | C51: 303 | D51: 21,881 | E51: $41,157 | F51: $73,693 | G51: $6,316 | H51: $54,758 | I51: $57,649
A52: VIC | B52: Hosp | C52: 347 | D52: 26,629 | E52: $43,708 | F52: $59,761 | G52: $3,116 | H52: $50,274 | I52: $50,761
A53: ACT | B53: Hosp | C53: 619 | D53: 31,841 | E53: $154,127 | F53: $169,419 | H53: $154,127 | I53: $160,081
K80: STATE
K81: NT
K82: QLD
K83: SA
K84: TAS
K85: WA
K86: NSW
K87: VIC
K88: ACT

Sheet Risk of death
A1: Infected and died | B1: 124 | D1: LIFE TABLES | E1: At Birth | G1: At age 15 | I1: At age 65
A2: Infected and lived | B2: 620 | D2: Year | E2: Male | F2: Female | G2: Male | H2: Female | I2: Male | J2: Female
A3: not infected and died | B3: 174 | D3: 1901-10 | E3: 55.2 | F3: 58.8 | G3: 49 | H3: 51.9 | I3: 11.3 | J3: 12.9
A4: not infected and lived | B4: 2775 | D4: 1920-22 | E4: 59.2 | F4: 63.3 | G4: 51.4 | H4: 54.6 | I4: 12 | J4: 13.6
D5: 1946-48 | E5: 66.1 | F5: 70.6 | G5: 54.3 | H5: 58.3 | I5: 12.3 | J5: 14.4
A6: death risk infected | B6: 0.16667 | D6: 1960-62 | E6: 67.9 | F6: 74.2 | G6: 55.1 | H6: 61 | I6: 12.5 | J6: 15.7
A7: death risk not infected | B7: 0.05900 | D7: 1980-82 | E7: 71.2 | F7: 78.3 | G7: 57.4 | H7: 64.3 | I7: 13.8 | J7: 18
D8: 1990 | E8: 73.9 | F8: 80.1 | G8: 59.8 | H8: 65.8 | I8: 15.2 | J8: 19
A9: log HR | B9: 1.27 | D9: 1991 | E9: 74.4 | F9: 80.4 | G9: 60.2 | H9: 66 | I9: 15.4 | J9: 19.1
A10: s.e. | B10: 0.13 | D10: 1992 | E10: 74.5 | F10: 80.4 | G10: 60.3 | H10: 66.1 | I10: 15.4 | J10: 19.2
D11: 1993 | E11: 75 | F11: 80.9 | G11: 60.8 | H11: 66.5 | I11: 15.7 | J11: 19.5
A12: lower 95% confidence intervals on log scale | B12: 1.01 | D12: 1994-96 | E12: 75.2 | F12: 81.1 | G12: 60.9 | H12: 66.7 | I12: 15.8 | J12: 19.6
A13: upper 95% confidence intervals on log scale | B13: 1.53 | D13: 1995-97 | E13: 75.6 | F13: 81.3 | G13: 61.3 | H13: 66.9 | I13: 16.1 | J13: 19.8
A14: lower 95% confidence intervals on RR scale | B14: 2.74 | D14: 1996-98 | E14: 75.9 | F14: 81.5 | G14: 61.5 | H14: 67.1 | I14: 16.3 | J14: 20
A15: upper 95% confidence intervals on RR scale | B15: 4.63 | D15: 1998-2000 | E15: 76.6 | F15: 82 | G15: 62.2 | H15: 67.6 | I15: 16.8 | J15: 20.4
D16: 2000-02 | E16: 77.4 | F16: 82.6 | G16: 63 | H16: 68.1 | I16: 17.4 | J16: 20.8
D17: 2003-05 | E17: 78.5 | F17: 83.3 | G17: 64.1 | H17: 68.9 | I17: 18.1 | J17: 21.4
D18: 2004-06 | E18: 78.7 | F18: 83.5 | G18: 64.3 | H18: 69 | I18: 18.3 | J18: 21.5

Sheet Skewed.Distribution
A1: Row number | B1: Distribution | C1: Selected | D1: Product | E1: Random selection | F1: Random value
A2: 1 | B2: 0.995 | C2: =IF($E$2=A2,1,0) -> 0 | D2: =B2*C2 -> 0 | E2: =RANDBETWEEN(0,10000) -> 1465 | F2: =SUM(D1:D10001) -> 0.991
A3: =A2+1 -> 2 | B3: 0.996 | C3: =IF($E$2=A3,1,0) -> 0 | D3: =B3*C3 -> 0
A4: =A3+1 -> 3 | B4: 0.837 | C4: =IF($E$2=A4,1,0) -> 0 | D4: 0
A5: 4 | B5: 0.995 | C5: =IF($E$2=A5,1,0) -> 0 | D5: 0
A6: 5 | B6: 0.995 | C6: =IF($E$2=A6,1,0) -> 0 | D6: 0
A7: 6 | B7: 0.976 | C7: 0 | D7: 0
A8: 7 | B8: 0.983 | C8: 0 | D8: 0
A9: 8 | B9: 0.994 | C9: 0 | D9: 0
A10: 9 | B10: 0.995 | C10: 0 | D10: 0
A11: 10 | B11: 0.995 | C11: 0 | D11: 0
A12: 11 | B12: 0.995 | C12: 0 | D12: 0
A13: 12 | B13: 0.948 | C13: 0 | D13: 0
A14: 13 | B14: 0.992 | C14: 0 | D14: 0
A15: 14 | B15: 0.993 | C15: 0 | D15: 0
A16: 15 | B16: 0.990 | C16: 0 | D16: 0
A17: 16 | B17: 0.953 | C17: 0 | D17: 0
A18: 17 | B18: 0.992 | C18: 0 | D18: 0
A19: 18 | B19: 0.995 | C19: 0 | D19: 0
A20: 19 | B20: 0.996 | C20: 0 | D20: 0
A21: 20 | B21: 0.995 | C21: 0 | D21: 0
A22: 21 | B22: 0.995 | C22: 0 | D22: 0
A23: 22 | B23: 0.942 | C23: 0 | D23: 0
A24: 23 | B24: 0.995 | C24: 0 | D24: 0
A25: 24 | B25: 0.995 | C25: 0 | D25: 0
A26: 25 | B26: 0.892 | C26: 0 | D26: 0
A27: 26 | B27: 0.995 | C27: 0 | D27: 0
A28: 27 | B28: 0.991 | C28: 0 | D28: 0
A29: 28 | B29: 0.995 | C29: 0 | D29: 0
A30: 29 | B30: 0.995 | C30: 0 | D30: 0
A31: 30 | B31: 0.995 | C31: 0 | D31: 0
A32: 31 | B32: 0.992 | C32: 0 | D32: 0
A33: 32 | B33: 0.878 | C33: 0 | D33: 0
A34: 33 | B34: 0.141 | C34: 0 | D34: 0
A35: 34 | B35: 0.921 | C35: 0 | D35: 0
A36: 35 | B36: 0.996 | C36: 0 | D36: 0
A37: 36 | B37: 0.932 | C37: 0 | D37: 0
A38: 37 | B38: 0.995 | C38: 0 | D38: 0
A39: 38 | B39: 0.987 | C39: 0 | D39: 0
A40: 39 | B40: 0.917 | C40: 0 | D40: 0
A41: 40 | B41: 0.995 | C41: 0 | D41: 0
A42: 41 | B42: 0.994 | C42: 0 | D42: 0
A43: 42 | B43: 0.935 | C43: 0 | D43: 0
A44: 43 | B44: 0.968 | C44: 0 | D44: 0
A45: 44 | B45: 0.995 | C45: 0 | D45: 0
A46: 45 | B46: 0.791 | C46: 0 | D46: 0
A47: 46 | B47: 0.981 | C47: 0 | D47: 0
A48: 47 | B48: 0.995 | C48: 0 | D48: 0
A49: 48 | B49: 0.998 | C49: 0 | D49: 0
A50: 49 | B50: 0.952 | C50: 0 | D50: 0
A51: 50 | B51: 0.973 | C51: 0 | D51: 0
A52: 51 | B52: 0.990 | C52: 0 | D52: 0
A53: 52 | B53: 0.995 | C53: 0 | D53: 0
A54: 53 | B54: 0.935 | C54: 0 | D54: 0
A55: 54 | B55: 0.980 | C55: 0 | D55: 0
A56: 55 | B56: 0.994 | C56: 0 | D56: 0
A57: 56 | B57: 0.938 | C57: 0 | D57: 0
A58: 57 | B58: 0.995 | C58: 0 | D58: 0
A59: 58 | B59: 0.970 | C59: 0 | D59: 0
A60: 59 | B60: 0.994 | C60: 0 | D60: 0
A61: 60 | B61: 0.962 | C61: 0 | D61: 0
A62: 61 | B62: 0.970 | C62: 0 | D62: 0
A63: 62 | B63: 0.995 | C63: 0 | D63: 0
A64: 63 | B64: 0.971 | C64: 0 | D64: 0
A65: 64 | B65: 0.767 | C65: 0 | D65: 0
A66: 65 | B66: 0.992 | C66: 0 | D66: 0
A67: 66 | B67: 0.994 | C67: 0 | D67: =B67*C67 -> 0
A68: =A67+1 -> 67 | B68: 0.977 | C68: 0 | D68: 0
A69: 68 | B69: 0.952 | C69: 0 | D69: 0
A70: 69 | B70: 0.995 | C70: =IF($E$2=A70,1,0) -> 0 | D70: 0
A71: 70 | B71: 0.963 | C71: 0 | D71: 0
A72: 71 | B72: 0.995 | C72: 0 | D72: 0
A73: 72 | B73: 0.779 | C73: 0 | D73: 0
A74: 73 | B74: 0.944 | C74: 0 | D74: 0
A75: 74 | B75: 0.971 | C75: 0 | D75: 0
A76: 75 | B76: 0.995 | C76: 0 | D76: 0
A77: 76 | B77: 0.995 | C77: 0 | D77: 0
A78: 77 | B78: 0.995 | C78: 0 | D78: 0
A79: 78 | B79: 0.890 | C79: 0 | D79: 0
A80: 79 | B80: 0.993 | C80: 0 | D80: 0
A81: 80 | B81: 0.901 | C81: 0 | D81: 0
A82: 81 | B82: 0.995 | C82: 0 | D82: 0
A83: 82 | B83: 0.997 | C83: 0 | D83: 0
A84: 83 | B84: 0.945 | C84: 0 | D84: 0
A85: 84 | B85: 0.995 | C85: 0 | D85: 0
A86: 85 | B86: 0.996 | C86: 0 | D86: 0
A87: 86 | B87: 0.995 | C87: 0 | D87: 0
A88: 87 | B88: 0.995 | C88: 0 | D88: 0
A89: 88 | B89: 0.995 | C89: 0 | D89: 0
A90: 89 | B90: 0.989 | C90: 0 | D90: 0
A91: 90 | B91: 0.985 | C91: 0 | D91: 0
A92: 91 | B92: 0.995 | C92: 0 | D92: 0
A93: 92 | B93: 0.988 | C93: 0 | D93: 0
A94: 93 | B94: 0.822 | C94: 0 | D94: 0
A95: 94 | B95: 0.995 | C95: 0 | D95: 0
A96: 95 | B96: 0.732 | C96: 0 | D96: 0
A97: 96 | B97: 0.995 | C97: 0 | D97: 0
A98: 97 | B98: 0.995 | C98: 0 | D98: 0
A99: 98 | B99: 0.993 | C99: 0 | D99: 0
A100: 99 | B100: 0.996 | C100: 0 | D100: 0
A101: 100 | B101: 0.917 | C101: 0 | D101: 0
A102: 101 | B102: 0.966 | C102: 0 | D102: 0
A103: 102 | B103: 0.981 | C103: 0 | D103: 0
A104: 103 | B104: 0.991 | C104: 0 | D104: 0
A105: 104 | B105: 0.934 | C105: 0 | D105: 0
A106: 105 | B106: 0.995 | C106: 0 | D106: 0
A107: 106 | B107: 0.993 | C107: 0 | D107: 0
A108: 107 | B108: 0.992 | C108: 0 | D108: 0
A109: 108 | B109: 0.974 | C109: 0 | D109: 0
A110: 109 | B110: 0.989 | C110: 0 | D110: 0
A111: 110 | B111: 0.995 | C111: 0 | D111: 0
A112: 111 | B112: 0.992 | C112: 0 | D112: 0
A113: 112 | B113: 0.995 | C113: 0 | D113: 0
A114: 113 | B114: 0.918 | C114: 0 | D114: 0
A115: 114 | B115: 0.989 | C115: 0 | D115: 0
A116: 115 | B116: 0.976 | C116: 0 | D116: 0
A117: 116 | B117: 0.957 | C117: 0 | D117: 0
A118: 117 | B118: 0.995 | C118: 0 | D118: 0
A119: 118 | B119: 0.944 | C119: 0 | D119: 0
A120: 119 | B120: 0.935 | C120: 0 | D120: 0
A121: 120 | B121: 0.993 | C121: 0 | D121: 0
A122: 121 | B122: 0.994 | C122: 0 | D122: 0
A123: 122 | B123: 0.976 | C123: 0 | D123: 0
A124: 123 | B124: 0.846 | C124: 0 | D124: 0
A125: 124 | B125: 0.995 | C125: 0 | D125: 0
A126: 125 | B126: 0.995 | C126: 0 | D126: 0
A127: 126 | B127: 0.988 | C127: 0 | D127: 0
A128: 127 | B128: 0.978 | C128: 0 | D128: 0
A129: 128 | B129: 0.807 | C129: 0 | D129: 0
A130: 129 | B130: 0.858 | C130: 0 | D130: 0
A131: 130 | B131: 0.989 | C131: 0 | D131: =B131*C131 -> 0
A132: =A131+1 -> 131 | B132: 0.995 | C132: 0 | D132: 0
A133: 132 | B133: 0.934 | C133: 0 | D133: 0
A134: 133 | B134: 0.995 | C134: =IF($E$2=A134,1,0) -> 0 | D134: 0
A135: 134 | B135: 0.793 | C135: 0 | D135: 0
A136: 135 | B136: 0.995 | C136: 0 | D136: 0
A137: 136 | B137: 0.993 | C137: 0 | D137: 0
A138: 137 | B138: 0.992 | C138: 0 | D138: 0
A139: 138 | B139: 0.990 | C139: 0 | D139: 0
A140: 139 | B140: 0.995 | C140: 0 | D140: 0
A141: 140 | B141: 0.991 | C141: 0 | D141: 0
A142: 141 | B142: 0.911 | C142: 0 | D142: 0
A143: 142 | B143: 0.995 | C143: 0 | D143: 0
A144: 143 | B144: 0.995 | C144: 0 | D144: 0
A145: 144 | B145: 0.855 | C145: 0 | D145: 0
A146: 145 | B146: 0.963 | C146: 0 | D146: 0
A147: 146 | B147: 0.968 | C147: 0 | D147: 0
A148: 147 | B148: 0.990 | C148: 0 | D148: 0
A149: 148 | B149: 0.996 | C149: 0 | D149: 0
A150: 149 | B150: 0.996 | C150: 0 | D150: 0
A151: 150 | B151: 0.980 | C151: 0 | D151: 0
A152: 151 | B152: 0.980 | C152: 0 | D152: 0
A153: 152 | B153: 0.995 | C153: 0 | D153: 0
A154: 153 | B154: 0.926 | C154: 0 | D154: 0
A155: 154 | B155: 0.987 | C155: 0 | D155: 0
A156: 155 | B156: 0.995 | C156: 0 | D156: 0
A157: 156 | B157: 0.992 | C157: 0 | D157: 0
A158: 157 | B158: 0.994 | C158: 0 | D158: 0
A159: 158 | B159: 0.996 | C159: 0 | D159: 0
A160: 159 | B160: 0.964 | C160: 0 | D160: 0
A161: 160 | B161: 0.996 | C161: 0 | D161: 0
A162: 161 | B162: 0.995 | C162: 0 | D162: 0
A163: 162 | B163: 0.993 | C163: 0 | D163: 0
A164: 163 | B164: 0.983 | C164: 0 | D164: 0
A165: 164 | B165: 0.995 | C165: 0 | D165: 0
A166: 165 | B166: 0.995 | C166: 0 | D166: 0
A167: 166 | B167: 0.964 | C167: 0 | D167: 0
A168: 167 | B168: 0.995 | C168: 0 | D168: 0
A169: 168 | B169: 0.989 | C169: 0 | D169: 0
A170: 169 | B170: 0.995 | C170: 0 | D170: 0
A171: 170 | B171: 0.995 | C171: 0 | D171: 0
A172: 171 | B172: 0.995 | C172: 0 | D172: 0
A173: 172 | B173: 0.995 | C173: 0 | D173: 0
A174: 173 | B174: 0.987 | C174: 0 | D174: 0
A175: 174 | B175: 0.949 | C175: 0 | D175: 0
A176: 175 | B176: 0.995 | C176: 0 | D176: 0
A177: 176 | B177: 0.876 | C177: 0 | D177: 0
A178: 177 | B178: 0.994 | C178: 0 | D178: 0
A179: 178 | B179: 0.993 | C179: 0 | D179: 0
A180: 179 | B180: 0.966 | C180: 0 | D180: 0
A181: 180 | B181: 0.991 | C181: 0 | D181: 0
A182: 181 | B182: 0.996 | C182: 0 | D182: 0
A183: 182 | B183: 0.896 | C183: 0 | D183: 0
A184: 183 | B184: 0.995 | C184: 0 | D184: 0
A185: 184 | B185: 0.673 | C185: 0 | D185: 0
A186: 185 | B186: 0.995 | C186: 0 | D186: 0
A187: 186 | B187: 0.873 | C187: 0 | D187: 0
A188: 187 | B188: 0.995 | C188: 0 | D188: 0
A189: 188 | B189: 0.985 | C189: 0 | D189: 0
A190: 189 | B190: 0.968 | C190: 0 | D190: 0
A191: 190 | B191: 0.996 | C191: 0 | D191: 0
A192: 191 | B192: 0.996 | C192: 0 | D192: 0
A193: 192 | B193: 0.996 | C193: 0 | D193: 0
A194: 193 | B194: 0.841 | C194: 0 | D194: 0
A195: 194 | B195: 0.996 | C195: 0 | D195: =B195*C195 -> 0
A196: =A195+1 -> 195 | B196: 0.973 | C196: 0 | D196: 0
A197: 196 | B197: 0.996 | C197: 0 | D197: 0
A198: 197 | B198: 0.903 | C198: =IF($E$2=A198,1,0) -> 0 | D198: 0
A199: 198 | B199: 0.990 | C199: 0 | D199: 0
A200: 199 | B200: 0.981 | C200: 0 | D200: 0
... 9801 more rows
